[Event "3rd FIDE WCCC Blitz G08 2019"]
[Site "Minsk"]
[Date "2019.08.18"]
[Round "5.5"]
[White "Kudrina, Evelina"]
[Black "Mutina, Evdokia"]
[Result "1-0"]
[ECO "D51"]
[WhiteElo "1194"]
[BlackElo "1001"]
[Annotator "NA"]
[PlyCount "143"]
[EventDate "2019.08.18"]
[EventType "swiss"]
[EventCountry "BLR"]
[SourceTitle "playchess.com"]
[Source "ChessBase"]
[SourceQuality "1"]
[TimeControl "300+2"]

1. d4 {[%emt 0:00:00]} d5 {[%emt 0:00:00]} 2. c4 {[%emt 0:00:08]} e6 3. Nc3 {[%emt 0:00:04]} Nf6 {[%emt 0:00:02]} 4. Bg5 {[%emt 0:00:01]} Nbd7 {[%emt 0:00:01]} 5. e3 {[%emt 0:00:06]} c6 {[%emt 0:00:03]} 6. cxd5 {[%emt 0:00:09]} cxd5 {[%emt 0:00:03]} 7. Bd3 {[%emt 0:00:01]} Be7 {[%emt 0:00:02]} 8. Nf3 {[%emt 0:00:05]} O-O {[%emt 0:00:03]} 9. Rc1 {[%emt 0:00:17]} h6 {[%emt 0:00:03]} 10. Bf4 {[%emt 0:00:01]} Bb4 {[%emt 0:00:06]} 11. O-O {[%emt 0:00:03]} Re8 {[%emt 0:00:04]} 12. a3 {[%emt 0:00:04]} Bxc3 {[%emt 0:00:02]} 13. Rxc3 {[%emt 0:00:02]} Qb6 {[%emt 0:00:11]} 14. Rb3 {[%emt 0:00:09]} Qc6 {[%emt 0:00:05]} 15. Bb5 {[%emt 0:00:08]} Qb6 {[%emt 0:00:43]} 16. Bxd7 {[%emt 0:00:01]} Qd8 {[%emt 0:00:03]} 17. Bxe8 Qxe8 {[%emt 0:00:03]} 18. Rc3 {[%emt 0:00:28]} Ne4 {[%emt 0:00:07]} 19. Rc7 {[%emt 0:00:12]} Qd8 {[%emt 0:00:09]} 20. Nd2 {[%emt 0:00:24]} g5 {[%emt 0:00:11]} 21. Rc1 {[%emt 0:00:19]} gxf4 {[%emt 0:00:07]} 22. Nxe4 {[%emt 0:00:05]} dxe4 {[%emt 0:00:03]} 23. exf4 {[%emt 0:00:03]} Qh4 {[%emt 0:00:07]} 24. Qd2 {[%emt 0:00:12]} b6 {[%emt 0:00:06]} 25. Qe3 {[%emt 0:00:10]} Bb7 {[%emt 0:00:05]} 26. Qg3+ {[%emt 0:00:02]} Qxg3 {[%emt 0:00:03]} 27. hxg3 {[%emt 0:00:03]} Rd8 {[%emt 0:00:04]} 28. Rfd1 {[%emt 0:00:15]} Ba6 {[%emt 0:00:02]} 29. Rd2 {[%emt 0:00:10]} Bd3 {[%emt 0:00:02]} 30. f3 {[%emt 0:00:31]} Rxd4 {[%emt 0:00:20]} 31. fxe4 {[%emt 0:00:04]} Rxe4 {[%emt 0:00:22]} 32. Rxd3 {[%emt 0:00:01]} Re2 {[%emt 0:00:02]} 33. Rb3 {[%emt 0:00:04]} Kg7 {[%emt 0:00:05]} 34. Kf1 {[%emt 0:00:08]} Rd2 {[%emt 0:00:02]} 35. Rb5 {[%emt 0:00:30]} f6 {[%emt 0:00:05]} 36. g4 {[%emt 0:00:06]} Kg6 {[%emt 0:00:02]} 37. Rb1 {[%emt 0:00:20]} Rd4 {[%emt 0:00:05]} 38. f5+ {[%emt 0:00:03]} exf5 {[%emt 0:00:04]} 39. gxf5+ {[%emt 0:00:08]} Kg5 {[%emt 0:00:00]} 40. Rb4 {[%emt 0:00:13]} Rd3 {[%emt 0:00:09]} 41. Rb5 {[%emt 0:00:08]} Rd4 {[%emt 0:00:04]} 42. Ke2 {[%emt 0:00:11]} Re4+ {[%emt 0:00:01]} 43. Kd3 {[%emt 0:00:02]} Rg4 {[%emt 0:00:05]} 44. Rg1 {[%emt 0:00:03]} Rg3+ {[%emt 0:00:04]} 45. Ke2 {[%emt 0:00:08]} Rg4 {[%emt 0:00:03]} 46. b4 {[%emt 0:00:01]} Rg3 {[%emt 0:00:03]} 47. a4 {[%emt 0:00:01]} Ra3 {[%emt 0:00:07]} 48. a5 {[%emt 0:00:01]} bxa5 {[%emt 0:00:02]} 49. Rxa5 {[%emt 0:00:03]} Rxa5 {[%emt 0:00:04]} 50. bxa5 {[%emt 0:00:01]} Kxf5 {[%emt 0:00:03]} 51. Rh1 {[%emt 0:00:03]} Ke5 {[%emt 0:00:04]} 52. Kf3 {[%emt 0:00:01]} Kd5 {[%emt 0:00:02]} 53. Rxh6 {[%emt 0:00:02]} Kc5 {[%emt 0:00:00]} 54. Rxf6 {[%emt 0:00:01]} Kb4 {[%emt 0:00:01]} 55. Rc6 {[%emt 0:00:02]} Kb5 {[%emt 0:00:02]} 56. Rc1 {[%emt 0:00:02]} Kxa5 {[%emt 0:00:01]} 57. Ra1+ {[%emt 0:00:01]} Kb6 {[%emt 0:00:01]} 58. Rxa7 {[%emt 0:00:02]} Kxa7 {[%emt 0:00:02]} 59. g4 {[%emt 0:00:01]} Kb7 {[%emt 0:00:01]} 60. Kf4 {[%emt 0:00:01]} Kc7 {[%emt 0:00:00]} 61. g5 {[%emt 0:00:01]} Kd7 {[%emt 0:00:00]} 62. Kf5 {[%emt 0:00:01]} Ke8 {[%emt 0:00:01]} 63. g6 {[%emt 0:00:01]} Kf8 {[%emt 0:00:00]} 64. Kf6 {[%emt 0:00:02]} Kg8 {[%emt 0:00:02]} 65. g7 {[%emt 0:00:01]} Kh7 {[%emt 0:00:02]} 66. Kf7 {[%emt 0:00:01]} Kh6 {[%emt 0:00:03]} 67. g8=Q {[%emt 0:00:01]} Kh5 {[%emt 0:00:04]} 68. Kf6 {[%emt 0:00:01]} Kh4 {[%emt 0:00:02]} 69. Kf5 {[%emt 0:00:01]} Kh3 {[%emt 0:00:01]} 70. Kf4 {[%emt 0:00:01]} Kh2 {[%emt 0:00:01]} 71. Kf3 {[%emt 0:00:00]} Kh1 {[%emt 0:00:02]} 72. Qg2# 1-0

[Event "3rd FIDE WCCC Blitz G08 2019"]
[Site "Minsk"]
[Date "2019.08.18"]
[Round "5.6"]
[White "Bausheva, Angelina"]
[Black "Asachenko, Ksenia"]
[Result "0-1"]
[ECO "B21"]
[WhiteElo "1043"]
[BlackElo "1169"]
[Annotator "NA"]
[PlyCount "73"]
[EventDate "2019.08.18"]
[EventType "swiss"]
[EventCountry "BLR"]
[SourceTitle "playchess.com"]
[Source "ChessBase"]
[SourceQuality "1"]
[TimeControl "300+2"]

1. e4 c5 {[%emt 0:00:00]} 2. d4 {[%emt 0:00:00]} cxd4 {[%emt 0:00:00]} 3. c3 {[%emt 0:00:00]} dxc3 {[%emt 0:00:02]} 4. Nxc3 {[%emt 0:00:01]} Nc6 {[%emt 0:00:02]} 5. Nf3 {[%emt 0:00:01]} d6 {[%emt 0:00:01]} 6. Bc4 {[%emt 0:00:01]} e6 {[%emt 0:00:01]} 7. O-O {[%emt 0:00:06]} Nf6 {[%emt 0:00:02]} 8. e5 {[%emt 0:00:40]} dxe5 {[%emt 0:00:10]} 9. Qxd8+ {[%emt 0:00:04]} Nxd8 {[%emt 0:00:18]} 10. Nb5 {[%emt 0:00:06]} Ke7 {[%emt 0:00:41]} 11. Nxe5 {[%emt 0:00:08]} a6 {[%emt 0:00:20]} 12. Nd4 {[%emt 0:00:37]} Ke8 {[%emt 0:00:21]} 13. Bf4 {[%emt 0:00:39]} Bc5 {[%emt 0:00:16]} 14. Nb3 {[%emt 0:00:06]} Bb6 {[%emt 0:00:09]} 15. Rfd1 {[%emt 0:00:10]} Ke7 {[%emt 0:00:59]} 16. Rac1 {[%emt 0:00:13]} Bc7 {[%emt 0:00:19]} 17. Ng6+ {[%emt 0:00:30]} hxg6 {[%emt 0:00:14]} 18. Bxc7 {[%emt 0:00:03]} Nc6 {[%emt 0:00:11]} 19. Nd4 {[%emt 0:00:23]} Nxd4 {[%emt 0:00:19]} 20. Rxd4 {[%emt 0:00:01]} b5 {[%emt 0:00:03]} 21. Bb3 {[%emt 0:00:05]} Bb7 {[%emt 0:00:04]} 22. Bb6 {[%emt 0:00:18]} Rac8 {[%emt 0:00:12]} 23. Rc2 {[%emt 0:00:43]} Rxc2 {[%emt 0:00:09]} 24. Bxc2 {[%emt 0:00:01]} Rc8 {[%emt 0:00:02]} 25. Rd2 {[%emt 0:00:14]} Be4 {[%emt 0:00:02]} 26. Bb3 {[%emt 0:00:22]} Rc1+ {[%emt 0:00:09]} 27. Rd1 {[%emt 0:00:00]} Rxd1+ {[%emt 0:00:03]} 28. Bxd1 {[%emt 0:00:01]} Bb1 {[%emt 0:00:05]} 29. a3 {[%emt 0:00:01]} Nd5 {[%emt 0:00:05]} 30. Bd4 {[%emt 0:00:12]} f6 {[%emt 0:00:02]} 31. Kf1 {[%emt 0:00:03]} Kd6 {[%emt 0:00:04]} 32. Ke2 {[%emt 0:00:04]} e5 {[%emt 0:00:03]} 33. Be3 {[%emt 0:00:07]} Bf5 {[%emt 0:00:06]} 34. f3 {[%emt 0:00:02]} g5 {[%emt 0:00:06]} 35. g4 {[%emt 0:00:02]} Bg6 {[%emt 0:00:03]} 36. Bb3 {[%emt 0:00:04]} a5 {[%emt 0:00:05]} 37. Bb6 0-1

[Event "3rd FIDE WCCC Blitz G08 2019"]
[Site "Minsk"]
[Date "2019.08.18"]
[Round "6.1"]
[White "Phan, Nguyen Mai Chi"]
[Black "Preobrazhenskaya, Diana"]
[Result "1/2-1/2"]
[ECO "A30"]
[WhiteElo "2139"]
[BlackElo "1361"]
[Annotator "NA"]
[PlyCount "180"]
[EventDate "2019.08.18"]
[EventType "swiss"]
[EventCountry "BLR"]
[SourceTitle "playchess.com"]
[Source "ChessBase"]
[SourceQuality "1"]
[TimeControl "300+2"]

1. c4 {[%emt 0:00:00]} c5 {[%emt 0:00:00]} 2. b3 {[%emt 0:00:00]} Nf6 {[%emt 0:00:05]} 3. Bb2 {[%emt 0:00:01]} g6 {[%emt 0:00:03]} 4. d3 {[%emt 0:00:04]} Bg7 {[%emt 0:00:02]} 5. e3 {[%emt 0:00:01]} O-O {[%emt 0:00:05]} 6. Nf3 {[%emt 0:00:01]} Nc6 {[%emt 0:00:04]} 7. Nbd2 {[%emt 0:00:02]} d5 {[%emt 0:00:15]} 8. cxd5 {[%emt 0:00:02]} Qxd5 {[%emt 0:00:05]} 9. Be2 {[%emt 0:00:05]} Nb4 {[%emt 0:00:21]} 10. Nc4 {[%emt 0:00:34]} Rd8 {[%emt 0:00:20]} 11. d4 {[%emt 0:00:52]} cxd4 {[%emt 0:00:07]} 12. Bxd4 {[%emt 0:00:03]} Bf5 {[%emt 0:00:23]} 13. O-O {[%emt 0:00:08]} Nc2 {[%emt 0:00:07]} 14. Rc1 {[%emt 0:00:03]} Nxd4 {[%emt 0:00:02]} 15. Nxd4 {[%emt 0:00:03]} Bd7 {[%emt 0:00:22]} 16. Bf3 {[%emt 0:00:06]} Qg5 {[%emt 0:00:08]} 17. Bxb7 {[%emt 0:00:13]} Rab8 {[%emt 0:00:05]} 18. Bf3 {[%emt 0:00:02]} Qh4 {[%emt 0:00:12]} 19. g3 {[%emt 0:00:21]} Qg5 {[%emt 0:00:12]} 20. Bg2 {[%emt 0:00:04]} Ng4 {[%emt 0:00:16]} 21. h3 {[%emt 0:00:31]} Nh6 {[%emt 0:00:28]} 22. Nf3 {[%emt 0:00:11]} Qb5 {[%emt 0:00:08]} 23. Qe2 {[%emt 0:00:02]} Be6 {[%emt 0:00:08]} 24. Kh2 {[%emt 0:00:17]} Nf5 {[%emt 0:00:05]} 25. Rfe1 {[%emt 0:00:11]} Nd6 {[%emt 0:00:02]} 26. Nxd6 {[%emt 0:00:01]} Qxe2 {[%emt 0:00:05]} 27. Rxe2 {[%emt 0:00:03]} Rxd6 {[%emt 0:00:06]} 28. Rec2 {[%emt 0:00:06]} Ra6 {[%emt 0:00:08]} 29. Nd4 {[%emt 0:00:13]} Bxd4 {[%emt 0:00:06]} 30. exd4 {[%emt 0:00:01]} Rd6 {[%emt 0:00:01]} 31. Rd2 {[%emt 0:00:03]} Rbd8 {[%emt 0:00:03]} 32. Rcd1 {[%emt 0:00:03]} Kg7 {[%emt 0:00:09]} 33. d5 {[%emt 0:00:01]} Bd7 {[%emt 0:00:05]} 34. Re2 {[%emt 0:00:10]} e6 {[%emt 0:00:05]} 35. Red2 {[%emt 0:00:02]} e5 {[%emt 0:00:06]} 36. Re2 {[%emt 0:00:03]} f6 {[%emt 0:00:03]} 37. Rc2 {[%emt 0:00:04]} Be6 {[%emt 0:00:13]} 38. Rc7+ {[%emt 0:00:05]} Kg8 {[%emt 0:00:04]} 39. Rxa7 {[%emt 0:00:03]} Bxd5 {[%emt 0:00:03]} 40. Bxd5+ {[%emt 0:00:05]} Rxd5 {[%emt 0:00:02]} 41. Rxd5 {[%emt 0:00:04]} Rxd5 {[%emt 0:00:01]} 42. Ra8+ {[%emt 0:00:01]} Kg7 {[%emt 0:00:02]} 43. a3 {[%emt 0:00:02]} Rd3 {[%emt 0:00:02]} 44. b4 {[%emt 0:00:02]} Rb3 {[%emt 0:00:03]} 45. Ra5 {[%emt 0:00:10]} Kf7 {[%emt 0:00:04]} 46. Ra7+ {[%emt 0:00:01]} Kg8 {[%emt 0:00:02]} 47. Ra5 {[%emt 0:00:02]} Kf7 {[%emt 0:00:04]} 48. b5 {[%emt 0:00:01]} Ke6 {[%emt 0:00:14]} 49. a4 {[%emt 0:00:01]} Rb4 {[%emt 0:00:06]} 50. Ra6+ {[%emt 0:00:03]} Kf5 {[%emt 0:00:05]} 51. b6 {[%emt 0:00:01]} Rb2 {[%emt 0:00:04]} 52. Kg2 {[%emt 0:00:02]} e4 {[%emt 0:00:02]} 53. g4+ {[%emt 0:00:05]} Kf4 {[%emt 0:00:02]} 54. Kg1 {[%emt 0:00:10]} Kf3 {[%emt 0:00:06]} 55. b7 {[%emt 0:00:05]} Rb1+ {[%emt 0:00:04]} 56. Kh2 {[%emt 0:00:03]} Rxb7 {[%emt 0:00:03]} 57. Rxf6+ {[%emt 0:00:02]} Ke2 {[%emt 0:00:01]} 58. Kg3 {[%emt 0:00:04]} Ra7 {[%emt 0:00:05]} 59. Re6 {[%emt 0:00:02]} Rxa4 {[%emt 0:00:01]} 60. Re7 {[%emt 0:00:02]} h5 {[%emt 0:00:07]} 61. gxh5 {[%emt 0:00:01]} gxh5 {[%emt 0:00:01]} 62. f3 {[%emt 0:00:04]} Kd3 {[%emt 0:00:11]} 63. Rxe4 {[%emt 0:00:09]} Rxe4 {[%emt 0:00:02]} 64. fxe4 {[%emt 0:00:01]} Kxe4 {[%emt 0:00:01]} 65. Kh4 {[%emt 0:00:01]} Kf5 {[%emt 0:00:01]} 66. Kxh5 {[%emt 0:00:01]} Kf6 {[%emt 0:00:01]} 67. Kh6 {[%emt 0:00:01]} Kf7 {[%emt 0:00:01]} 68. Kh7 {[%emt 0:00:01]} Kf8 {[%emt 0:00:02]} 69. h4 {[%emt 0:00:02]} Kf7 {[%emt 0:00:01]} 70. h5 {[%emt 0:00:01]} Kf8 {[%emt 0:00:01]} 71. Kh6 {[%emt 0:00:09]} Kg8 {[%emt 0:00:02]} 72. Kg6 {[%emt 0:00:01]} Kh8 {[%emt 0:00:01]} 73. Kg5 {[%emt 0:00:11]} Kh7 {[%emt 0:00:01]} 74. h6 {[%emt 0:00:02]} Kh8 {[%emt 0:00:01]} 75. Kh4 {[%emt 0:00:03]} Kh7 {[%emt 0:00:02]} 76. Kh5 {[%emt 0:00:00]} Kh8 {[%emt 0:00:02]} 77. Kg6 {[%emt 0:00:03]} Kg8 {[%emt 0:00:01]} 78. Kg5 {[%emt 0:00:03]} Kh7 {[%emt 0:00:02]} 79. Kh5 {[%emt 0:00:00]} Kh8 {[%emt 0:00:01]} 80. Kg4 {[%emt 0:00:04]} Kh7 {[%emt 0:00:02]} 81. Kg5 {[%emt 0:00:02]} Kg8 {[%emt 0:00:02]} 82. Kf6 {[%emt 0:00:05]} Kh8 {[%emt 0:00:05]} 83. Kf5 {[%emt 0:00:04]} Kg8 {[%emt 0:00:02]} 84. Kg6 {[%emt 0:00:01]} Kh8 {[%emt 0:00:02]} 85. Kh5 {[%emt 0:00:01]} Kh7 {[%emt 0:00:02]} 86. Kg5 {[%emt 0:00:02]} Kg8 {[%emt 0:00:03]} 87. Kg4 {[%emt 0:00:05]} Kf7 {[%emt 0:00:03]} 88. Kh5 {[%emt 0:00:07]} Kf6 {[%emt 0:00:03]} 89. Kg4 {[%emt 0:00:07]} Kg6 {[%emt 0:00:01]} 90. h7 {[%emt 0:00:01]} Kxh7 {[%emt 0:00:02]} 1/2-1/2

[Event "3rd FIDE WCCC Blitz G08 2019"]
[Site "Minsk"]
[Date "2019.08.18"]
[Round "6.2"]
[White "Trishkina, Evgeniya"]
[Black "Tong, Thai Hoang An"]
[Result "0-1"]
[ECO "B01"]
[WhiteElo "1328"]
[BlackElo "1208"]
[Annotator "NA"]
[PlyCount "46"]
[EventDate "2019.08.18"]
[EventType "swiss"]
[EventCountry "BLR"]
[SourceTitle "playchess.com"]
[Source "ChessBase"]
[SourceQuality "1"]
[TimeControl "300+2"]

1. e4 {[%emt 0:00:00]} d5 {[%emt 0:00:01]} 2. exd5 {[%emt 0:00:01]} Qxd5 {[%emt 0:00:08]} 3. Nc3 {[%emt 0:00:01]} Qd6 {[%emt 0:00:01]} 4. Bc4 {[%emt 0:00:03]} Nf6 {[%emt 0:00:02]} 5. Nf3 {[%emt 0:00:02]} a6 {[%emt 0:00:01]} 6. O-O {[%emt 0:00:03]} Bg4 {[%emt 0:00:05]} 7. h3 {[%emt 0:00:02]} Bh5 {[%emt 0:00:01]} 8. Be2 {[%emt 0:00:01]} Nc6 {[%emt 0:00:02]} 9. d3 {[%emt 0:00:10]} O-O-O {[%emt 0:00:04]} 10. Re1 {[%emt 0:00:09]} e5 {[%emt 0:00:01]} 11. Be3 {[%emt 0:00:13]} h6 {[%emt 0:00:13]} 12. a3 {[%emt 0:00:10]} g5 {[%emt 0:00:01]} 13. b4 {[%emt 0:00:03]} g4 {[%emt 0:00:03]} 14. hxg4 {[%emt 0:00:03]} Bxg4 {[%emt 0:00:03]} 15. Nh2 {[%emt 0:00:02]} Bxe2 16. Qxe2 {[%emt 0:00:02]} Nd4 {[%emt 0:00:02]} 17. Bxd4 {[%emt 0:00:02]} exd4 {[%emt 0:00:02]} 18. Ne4 {[%emt 0:00:04]} Nxe4 {[%emt 0:00:02]} 19. Qxe4 {[%emt 0:00:01]} Rg8 {[%emt 0:00:03]} 20. Qh7 {[%emt 0:00:12]} Rg7 {[%emt 0:00:04]} 21. Qf5+ {[%emt 0:00:03]} Kb8 {[%emt 0:00:01]} 22. Qe5 {[%emt 0:00:23]} Qc6 {[%emt 0:00:04]} 23. Rac1 {[%emt 0:00:15]} Qxg2# {[%emt 0:00:02]} 0-1

[Event "3rd FIDE WCCC Blitz G08 2019"]
[Site "Minsk"]
[Date "2019.08.18"]
[Round "6.3"]
[White "Asachenko, Ksenia"]
[Black "Kudrina, Evelina"]
[Result "1-0"]
[ECO "B01"]
[WhiteElo "1169"]
[BlackElo "1194"]
[Annotator "NA"]
[PlyCount "141"]
[EventDate "2019.08.18"]
[EventType "swiss"]
[EventCountry "BLR"]
[SourceTitle "playchess.com"]
[Source "ChessBase"]
[SourceQuality "1"]
[TimeControl "300+2"]

1. e4 {[%emt 0:00:00]} d5 {[%emt 0:00:00]} 2. exd5 {[%emt 0:00:01]} Qxd5 {[%emt 0:00:00]} 3. Nc3 {[%emt 0:00:01]} Qa5 {[%emt 0:00:01]} 4. Nf3 {[%emt 0:00:03]} Nf6 {[%emt 0:00:01]} 5. d4 {[%emt 0:00:03]} Bg4 {[%emt 0:00:03]} 6. h3 {[%emt 0:00:03]} Bh5 {[%emt 0:00:01]} 7. g4 {[%emt 0:00:02]} Bg6 {[%emt 0:00:02]} 8. Ne5 {[%emt 0:00:01]} Be4 {[%emt 0:00:17]} 9. f3 {[%emt 0:00:40]} Bc6 {[%emt 0:00:15]} 10. Bf4 {[%emt 0:00:32]} Nd5 {[%emt 0:00:21]} 11. Bd2 {[%emt 0:00:06]} e6 {[%emt 0:01:30]} 12. Bd3 {[%emt 0:01:07]} Nb4 {[%emt 0:00:30]} 13. Be4 {[%emt 0:01:14]} f6 {[%emt 0:00:26]} 14. Nxc6 {[%emt 0:00:49]} N4xc6 {[%emt 0:00:09]} 15. Nd5 {[%emt 0:00:11]} Nb4 {[%emt 0:00:37]} 16. Nxb4 {[%emt 0:00:05]} Bxb4 {[%emt 0:00:01]} 17. Bxb7 {[%emt 0:00:08]} Bxd2+ {[%emt 0:00:11]} 18. Qxd2 {[%emt 0:00:03]} Qxd2+ {[%emt 0:00:11]} 19. Kxd2 {[%emt 0:00:02]} Kf7 {[%emt 0:00:01]} 20. Bxa8 {[%emt 0:00:02]} Na6 {[%emt 0:00:02]} 21. Be4 {[%emt 0:00:04]} g6 {[%emt 0:00:06]} 22. Rhe1 {[%emt 0:00:02]} Re8 {[%emt 0:00:08]} 23. h4 {[%emt 0:00:02]} Nb4 {[%emt 0:00:05]} 24. a3 {[%emt 0:00:02]} Na6 {[%emt 0:00:03]} 25. Bb7 {[%emt 0:00:04]} Nb8 {[%emt 0:00:04]} 26. c4 {[%emt 0:00:02]} Nd7 {[%emt 0:00:01]} 27. Be4 {[%emt 0:00:03]} Nb6 {[%emt 0:00:01]} 28. Bc6 {[%emt 0:00:03]} Rd8 {[%emt 0:00:07]} 29. Kc3 {[%emt 0:00:03]} Rd6 {[%emt 0:00:10]} 30. Be4 {[%emt 0:00:01]} Rd8 {[%emt 0:00:03]} 31. Re2 {[%emt 0:00:02]} Rc8 {[%emt 0:00:03]} 32. Rae1 {[%emt 0:00:02]} c5 {[%emt 0:00:03]} 33. dxc5 {[%emt 0:00:04]} Rxc5 {[%emt 0:00:02]} 34. b3 {[%emt 0:00:01]} e5 35. Bd3 {[%emt 0:00:04]} Nd5+ {[%emt 0:00:08]} 36. Kc2 {[%emt 0:00:06]} Nf4 {[%emt 0:00:02]} 37. Rf2 {[%emt 0:00:02]} Nxd3 {[%emt 0:00:08]} 38. Kxd3 Ra5 {[%emt 0:00:01]} 39. a4 {[%emt 0:00:03]} Ra6 {[%emt 0:00:02]} 40. f4 {[%emt 0:00:02]} Rd6+ {[%emt 0:00:01]} 41. Kc3 {[%emt 0:00:03]} exf4 {[%emt 0:00:04]} 42. Rxf4 {[%emt 0:00:01]} a5 {[%emt 0:00:02]} 43. b4 {[%emt 0:00:02]} axb4+ {[%emt 0:00:03]} 44. Kxb4 {[%emt 0:00:01]} Rb6+ {[%emt 0:00:01]} 45. Ka3 {[%emt 0:00:02]} Ra6 {[%emt 0:00:02]} 46. c5 {[%emt 0:00:02]} h6 {[%emt 0:00:04]} 47. Rc4 {[%emt 0:00:03]} Rc6 {[%emt 0:00:02]} 48. a5 {[%emt 0:00:01]} f5 {[%emt 0:00:02]} 49. gxf5 {[%emt 0:00:02]} gxf5 {[%emt 0:00:01]} 50. Rf1 {[%emt 0:00:01]} Kf6 {[%emt 0:00:01]} 51. Ka4 {[%emt 0:00:02]} Ke5 {[%emt 0:00:02]} 52. Rff4 {[%emt 0:00:02]} h5 {[%emt 0:00:01]} 53. Kb5 {[%emt 0:00:03]} Rc8 {[%emt 0:00:02]} 54. a6 {[%emt 0:00:02]} Ra8 {[%emt 0:00:02]} 55. c6 {[%emt 0:00:01]} Rb8+ {[%emt 0:00:04]} 56. Ka5 {[%emt 0:00:02]} Kd5 {[%emt 0:00:01]} 57. Rb4 {[%emt 0:00:03]} Ra8 {[%emt 0:00:03]} 58. Rfc4 {[%emt 0:00:04]} Kd6 {[%emt 0:00:01]} 59. c7 {[%emt 0:00:01]} Kd7 {[%emt 0:00:01]} 60. c8=Q+ Rxc8 {[%emt 0:00:03]} 61. Rxc8 {[%emt 0:00:10]} Kxc8 {[%emt 0:00:03]} 62. a7 {[%emt 0:00:02]} Kd7 {[%emt 0:00:00]} 63. a8=Q {[%emt 0:00:07]} Ke6 {[%emt 0:00:00]} 64. Qc8+ {[%emt 0:00:02]} Ke5 {[%emt 0:00:00]} 65. Rb5+ {[%emt 0:00:01]} Kf4 {[%emt 0:00:00]} 66. Qc7+ {[%emt 0:00:02]} Ke3 {[%emt 0:00:00]} 67. Re5+ {[%emt 0:00:02]} Kd4 {[%emt 0:00:00]} 68. Qc5+ {[%emt 0:00:01]} Kd3 {[%emt 0:00:00]} 69. Re3+ {[%emt 0:00:01]} Kd2 {[%emt 0:00:00]} 70. Qc3+ {[%emt 0:00:01]} Kd1 {[%emt 0:00:00]} 71. Re1# {[%emt 0:00:01]} 1-0

[Event "3rd FIDE WCCC Blitz G08 2019"]
[Site "Minsk"]
[Date "2019.08.18"]
[Round "6.4"]
[White "Lajdamik, Kinga"]
[Black "Olimova, Rukiya"]
[Result "0-1"]
[ECO "C01"]
[WhiteElo "1145"]
[BlackElo "1178"]
[Annotator "NA"]
[PlyCount "186"]
[EventDate "2019.08.18"]
[EventType "swiss"]
[EventCountry "BLR"]
[SourceTitle "playchess.com"]
[Source "ChessBase"]
[SourceQuality "1"]
[TimeControl "300+2"]

1. e4 {[%emt 0:00:00]} e6 {[%emt 0:00:00]} 2. d4 {[%emt 0:00:00]} d5 {[%emt 0:00:01]} 3. exd5 {[%emt 0:00:04]} exd5 {[%emt 0:00:01]} 4. Bd3 {[%emt 0:00:01]} Bd6 {[%emt 0:00:02]} 5. Nf3 {[%emt 0:00:03]} Nf6 {[%emt 0:00:02]} 6. c3 {[%emt 0:00:02]} h6 {[%emt 0:00:01]} 7. O-O {[%emt 0:00:06]} O-O {[%emt 0:00:02]} 8. h3 {[%emt 0:00:02]} c6 {[%emt 0:00:03]} 9. Be3 {[%emt 0:00:10]} Qc7 {[%emt 0:00:02]} 10. Nbd2 {[%emt 0:00:05]} Be6 {[%emt 0:00:05]} 11. Qc2 {[%emt 0:00:02]} Nbd7 {[%emt 0:00:02]} 12. Rfe1 {[%emt 0:00:04]} Rfe8 {[%emt 0:00:00]} 13. a3 {[%emt 0:00:12]} Nb6 {[%emt 0:00:04]} 14. Re2 {[%emt 0:00:08]} Rad8 {[%emt 0:00:16]} 15. Rae1 {[%emt 0:00:02]} Bf4 {[%emt 0:00:22]} 16. Qb1 {[%emt 0:00:28]} Bxe3 {[%emt 0:00:16]} 17. Rxe3 {[%emt 0:00:05]} Bc8 {[%emt 0:01:01]} 18. Rxe8+ {[%emt 0:00:10]} Rxe8 {[%emt 0:00:02]} 19. Bh7+ {[%emt 0:00:24]} Kf8 {[%emt 0:00:02]} 20. Rxe8+ {[%emt 0:00:02]} Kxe8 {[%emt 0:00:03]} 21. Qe1+ {[%emt 0:00:08]} Kf8 {[%emt 0:00:07]} 22. Bd3 {[%emt 0:00:08]} Be6 {[%emt 0:00:10]} 23. Ne5 {[%emt 0:00:05]} Nbd7 {[%emt 0:00:05]} 24. Ndf3 {[%emt 0:00:17]} Nxe5 {[%emt 0:00:03]} 25. Nxe5 {[%emt 0:00:05]} Nd7 {[%emt 0:00:02]} 26. Nf3 {[%emt 0:00:11]} Qb6 {[%emt 0:00:05]} 27. Qd2 {[%emt 0:00:06]} Nf6 {[%emt 0:00:11]} 28. Ne5 {[%emt 0:00:09]} c5 {[%emt 0:00:09]} 29. dxc5 {[%emt 0:00:18]} Qxc5 {[%emt 0:00:06]} 30. Qe3 {[%emt 0:00:11]} Qxe3 {[%emt 0:00:22]} 31. fxe3 {[%emt 0:00:01]} Ke7 {[%emt 0:00:02]} 32. Kf2 {[%emt 0:00:06]} Kd6 {[%emt 0:00:03]} 33. Nf3 {[%emt 0:00:06]} Nd7 {[%emt 0:00:08]} 34. Ke2 {[%emt 0:00:11]} Nc5 {[%emt 0:00:05]} 35. Bc2 {[%emt 0:00:22]} g5 {[%emt 0:00:08]} 36. Nd4 {[%emt 0:00:02]} a6 {[%emt 0:00:17]} 37. b4 {[%emt 0:00:03]} Nd7 {[%emt 0:00:06]} 38. a4 {[%emt 0:00:03]} Ne5 {[%emt 0:00:05]} 39. b5 {[%emt 0:00:31]} Nc4 {[%emt 0:00:06]} 40. Bb3 {[%emt 0:00:07]} axb5 {[%emt 0:00:12]} 41. axb5 {[%emt 0:00:01]} Nb6 {[%emt 0:00:04]} 42. Kf3 {[%emt 0:00:12]} f5 {[%emt 0:00:06]} 43. Nxe6 {[%emt 0:00:10]} Kxe6 {[%emt 0:00:01]} 44. g4 {[%emt 0:00:05]} Kf6 {[%emt 0:00:10]} 45. Bc2 {[%emt 0:00:11]} fxg4+ {[%emt 0:00:12]} 46. Kxg4 {[%emt 0:00:03]} Nc4 {[%emt 0:00:02]} 47. Bb3 {[%emt 0:00:18]} Nxe3+ {[%emt 0:00:02]} 48. Kh5 {[%emt 0:00:02]} Kg7 {[%emt 0:00:03]} 49. Ba2 {[%emt 0:00:05]} b6 {[%emt 0:00:02]} 50. Bb1 {[%emt 0:00:03]} Nc4 {[%emt 0:00:04]} 51. Bg6 {[%emt 0:00:01]} Na3 {[%emt 0:00:02]} 52. Be8 {[%emt 0:00:02]} Nb1 {[%emt 0:00:02]} 53. Bc6 {[%emt 0:00:02]} Nxc3 54. Kg4 Kf6 {[%emt 0:00:04]} 55. Kh5 {[%emt 0:00:05]} d4 {[%emt 0:00:03]} 56. Bf3 {[%emt 0:00:01]} Kg7 {[%emt 0:00:02]} 57. Kg4 {[%emt 0:00:05]} Nxb5 {[%emt 0:00:01]} 58. Bc6 {[%emt 0:00:04]} Nd6 {[%emt 0:00:01]} 59. Kf3 {[%emt 0:00:01]} Kf6 {[%emt 0:00:02]} 60. Ke2 {[%emt 0:00:03]} Ke5 {[%emt 0:00:00]} 61. Kd3 {[%emt 0:00:01]} h5 {[%emt 0:00:04]} 62. Bf3 {[%emt 0:00:03]} h4 {[%emt 0:00:01]} 63. Bg4 {[%emt 0:00:01]} b5 {[%emt 0:00:02]} 64. Bd7 {[%emt 0:00:01]} b4 {[%emt 0:00:01]} 65. Ba4 {[%emt 0:00:01]} Nf5 {[%emt 0:00:02]} 66. Bd7 {[%emt 0:00:03]} Ne3 {[%emt 0:00:02]} 67. Ba4 {[%emt 0:00:01]} Nd5 {[%emt 0:00:04]} 68. Bd7 {[%emt 0:00:02]} Nf4+ {[%emt 0:00:02]} 69. Kc4 {[%emt 0:00:02]} d3 {[%emt 0:00:04]} 70. Kxb4 {[%emt 0:00:01]} d2 {[%emt 0:00:02]} 71. Bg4 {[%emt 0:00:03]} Nxh3 {[%emt 0:00:01]} 72. Kc3 {[%emt 0:00:04]} Nf2 {[%emt 0:00:05]} 73. Bf3 {[%emt 0:00:01]} g4 {[%emt 0:00:01]} 74. Be2 {[%emt 0:00:02]} h3 {[%emt 0:00:02]} 75. Kxd2 {[%emt 0:00:02]} h2 {[%emt 0:00:02]} 76. Ke1 {[%emt 0:00:03]} h1=Q+ {[%emt 0:00:01]} 77. Kxf2 {[%emt 0:00:01]} Kf4 {[%emt 0:00:02]} 78. Bxg4 {[%emt 0:00:03]} Kxg4 {[%emt 0:00:02]} 79. Ke3 {[%emt 0:00:01]} Qf3+ {[%emt 0:00:01]} 80. Kd4 {[%emt 0:00:01]} Kf5 {[%emt 0:00:02]} 81. Kc4 {[%emt 0:00:01]} Ke5 {[%emt 0:00:01]} 82. Kb5 {[%emt 0:00:02]} Qc3 {[%emt 0:00:01]} 83. Kb6 {[%emt 0:00:02]} Kd6 {[%emt 0:00:02]} 84. Kb5 {[%emt 0:00:02]} Qc5+ {[%emt 0:00:01]} 85. Ka4 {[%emt 0:00:01]} Kc6 {[%emt 0:00:01]} 86. Kb3 {[%emt 0:00:01]} Qd4 {[%emt 0:00:01]} 87. Ka3 {[%emt 0:00:01]} Kb5 {[%emt 0:00:01]} 88. Kb3 {[%emt 0:00:01]} Qd3+ {[%emt 0:00:01]} 89. Kb2 {[%emt 0:00:02]} Ka4 {[%emt 0:00:01]} 90. Kc1 {[%emt 0:00:01]} Qe2 {[%emt 0:00:03]} 91. Kb1 {[%emt 0:00:01]} Qd2 {[%emt 0:00:01]} 92. Ka1 {[%emt 0:00:02]} Kb3 {[%emt 0:00:00]} 93. Kb1 {[%emt 0:00:02]} Qb2# 0-1